bitfinex-derivatives/quotes_BNBF0:USTF0_20250810
["timestamp","ask_amount","ask_price","bid_price","bid_amount"]
[1754830050716,0.70045822,802.07,799.68,0.5]
[1754830050913,0.70045822,802.06,799.68,0.5]
[1754830051217,0.70045822,802.05,799.68,0.5]
[1754830051513,0.70045822,802.04,799.68,0.5]
[1754830051712,0.70045822,802.03,799.68,0.5]
[1754830051916,0.70045822,802.02,799.68,0.5]
[1754830052216,0.21697993,802.23,799.68,0.5]
[1754830052217,0.70045822,802.01,799.68,0.5]
[1754830052413,0.70045822,802.0,799.68,0.5]
[1754830052613,0.70045822,801.99,799.89,0.5]
[1754830052820,0.70045822,801.98,799.89,0.5]
[1754830053013,0.70045822,801.97,799.89,0.5]
[1754830053213,0.70045822,801.96,799.89,0.5]
[1754830053418,0.70045822,801.95,799.89,0.5]
[1754830053619,0.70045822,801.94,799.89,0.5]
[1754830053820,0.70045822,801.93,799.89,0.5]
[1754830054129,0.70045822,801.92,799.89,0.5]
[1754830054322,0.70045822,801.91,799.89,0.5]
[1754830054514,1.1101201,801.63,799.89,0.5]
[1754830055015,1.1101201,801.5,799.89,0.5]
[1754830055218,1.1101201,801.38,799.89,0.5]
[1754830055420,1.1101201,801.39,799.89,0.5]
[1754830055619,1.1101201,801.36,799.89,0.5]
[1754830056223,1.1101201,801.37,799.89,0.5]
[1754830056522,1.1101201,801.33,799.89,0.5]
[1754830056916,1.1101201,801.35,799.89,0.5]
[1754830057217,1.1101201,801.36,799.89,0.5]
[1754830057517,1.1101201,801.35,799.92,0.348]
[1754830057717,1.1101201,801.35,799.91,0.5]
[1754830058026,1.1101201,801.36,799.91,0.5]
[1754830058425,1.1101201,801.35,799.91,0.5]
[1754830060525,1.1101201,801.34,799.91,0.5]
[1754830060929,1.1101201,801.35,799.91,0.5]
[1754830061425,1.1101201,801.34,799.91,0.5]
[1754830062429,1.1101201,801.33,799.91,0.5]
[1754830063531,1.1101201,801.29,799.91,0.5]
[1754830063727,1.1101201,801.32,799.91,0.5]
[1754830063926,1.1101201,801.44,799.91,0.5]
[1754830064326,1.1101201,801.43,799.91,0.5]
[1754830064529,1.1101201,801.42,799.91,0.5]
[1754830065227,1.1101201,801.43,799.91,0.5]
[1754830065428,1.1101201,801.41,799.91,0.5]
[1754830065728,1.1101201,801.42,799.91,0.5]
[1754830066128,0.83347119,801.23,799.91,0.5]
[1754830066328,0.83347119,801.22,799.91,0.5]
[1754830066629,0.83347119,801.23,799.91,0.5]
[1754830067330,0.83347119,801.22,799.91,0.5]
[1754830067532,0.83347119,801.23,799.91,0.5]
[1754830067731,0.83347119,801.26,799.91,0.5]
[1754830067930,0.83347119,801.3,799.91,0.5]
[1754830068431,0.83347119,801.29,799.91,0.5]
[1754830069331,0.83347119,801.28,799.91,0.5]
[1754830069535,0.83347119,801.29,799.91,0.5]
[1754830070636,0.83347119,801.28,799.91,0.5]
[1754830071332,0.83347119,801.27,799.91,0.5]
[1754830071937,0.83347119,801.26,799.91,0.5]
[1754830072141,0.83347119,801.25,799.91,0.5]
[1754830072338,0.83347119,801.24,799.91,1.6018512]
[1754830072934,0.83347119,801.23,799.92,1.1018512]
[1754830073439,0.83347119,801.23,799.93,1.1018512]
[1754830073739,0.83347119,801.22,799.95,1.1018512]
[1754830074438,0.83347119,801.2,799.96,1.1018512]
[1754830074735,0.83347119,801.19,799.97,1.1018512]
[1754830075038,0.83347119,801.2,799.95,1.1018512]
[1754830075537,0.83347119,801.18,799.96,1.1018512]
[1754830076339,0.83347119,801.19,799.96,1.1018512]
[1754830076539,0.83347119,801.17,799.97,1.1018512]
[1754830077239,0.83347119,801.15,799.99,1.1018512]
[1754830077540,0.83347119,801.13,800.01,1.1018512]
[1754830078341,0.83347119,801.1,800.02,1.1018512]
[1754830079342,0.83347119,801.1,800.03,1.1018512]
[1754830081244,0.83347119,801.09,800.03,1.1018512]
[1754830081445,0.83347119,801.07,800.0,1.1018512]
[1754830081744,0.83347119,801.03,799.98,1.1018512]
[1754830082540,0.83347119,801.02,799.98,1.1018512]
[1754830082843,0.83347119,801.03,799.98,1.1018512]
[1754830083045,0.83347119,801.02,799.98,1.1018512]
[1754830083346,0.83347119,801.03,799.99,1.1018512]
[1754830084443,0.83347119,801.02,799.99,1.1018512]
[1754830084946,0.83347119,801.01,800.01,1.1018512]
[1754830085545,0.83347119,801.14,800.06,1.1018512]
[1754830087441,0.83347119,801.12,800.05,1.1018512]
[1754830089347,0.83347119,801.13,800.05,1.1018512]
[1754830089647,0.83347119,801.3,799.98,1.1018512]
[1754830090047,0.83347119,801.28,799.96,1.1018512]
[1754830090248,0.83347119,801.27,799.96,1.1018512]
[1754830090444,0.83347119,801.28,799.96,1.1018512]
[1754830091244,0.83347119,801.27,799.97,1.1018512]
[1754830091547,0.83347119,801.27,799.96,1.1018512]
[1754830092348,0.83347119,801.27,799.97,1.1018512]
[1754830093349,0.83347119,801.39,800.1,1.1018512]
[1754830093851,0.83347119,801.38,800.11,1.1018512]
[1754830094451,0.83347119,801.39,800.11,1.1018512]
[1754830094651,0.83347119,801.3,800.06,1.1018512]
[1754830095250,0.83347119,801.25,800.12,1.1018512]
[1754830096147,0.83347119,801.23,800.15,1.1018512]
[1754830097248,0.83347119,801.17,800.22,1.1018512]
[1754830097948,0.83347119,801.17,800.23,1.1018512]
[1754830098153,0.83347119,801.19,800.24,1.1018512]
[1754830098348,0.83347119,801.19,800.25,1.1018512]
[1754830099058,0.83347119,801.19,800.24,1.1018512]
[1754830100455,0.83347119,801.22,800.21,1.1018512]
[1754830101755,0.83347119,801.26,800.15,1.1018512]
[1754830102454,0.83347119,801.29,800.12,1.1018512]
[1754830103358,0.83347119,801.15,800.08,0.5]
[1754830104559,0.83347119,801.19,800.08,0.5]
[1754830106657,0.83347119,801.18,800.08,0.5]
[1754830107362,0.83347119,801.17,800.08,0.5]
[1754830108261,0.83347119,801.16,800.08,0.5]
[1754830109265,0.83347119,801.15,800.08,0.5]
[1754830110261,0.83347119,801.14,800.08,1.6018512]
[1754830110566,0.83347119,801.14,800.09,1.1018512]
[1754830111062,0.83347119,801.14,800.08,1.6018512]
[1754830111266,0.83347119,801.13,800.16,1.1018512]
[1754830111462,0.83347119,801.12,800.16,1.1018512]
[1754830112067,0.83347119,801.16,800.1,1.1018512]
[1754830112267,0.83347119,801.13,800.14,1.1018512]
[1754830112467,0.83347119,801.14,800.14,1.1018512]
[1754830112871,1.6651802,801.52,800.08,0.5]
[1754830112872,0.83347119,801.13,800.13,1.1018512]
[1754830113168,0.83347119,801.13,800.14,1.1018512]
[1754830113465,0.83347119,801.14,800.15,1.1018512]
[1754830113666,0.83347119,801.18,800.11,1.1018512]
[1754830114172,0.83347119,801.18,800.12,1.1018512]
[1754830116271,0.83347119,801.18,800.13,1.1018512]
[1754830116567,0.83347119,801.18,800.12,1.1018512]
[1754830117273,0.83347119,801.17,800.12,1.1018512]
[1754830118271,0.83347119,801.17,800.13,1.1018512]
[1754830118472,0.83347119,801.17,800.12,1.1018512]
[1754830118669,0.83347119,801.19,800.11,1.1018512]
[1754830119071,0.83347119,801.19,800.1,1.1018512]
[1754830119374,0.83347119,801.18,800.11,1.1018512]
[1754830119670,0.83347119,801.19,800.11,1.1018512]
[1754830120076,0.83347119,801.19,800.1,1.1018512]
[1754830121178,0.83347119,801.19,800.11,1.1018512]
[1754830121377,0.83347119,801.18,800.11,1.1018512]
[1754830122077,0.83347119,801.16,800.14,1.1018512]
[1754830122277,0.83347119,801.16,800.13,1.1018512]
[1754830123177,0.83347119,801.16,800.14,1.1018512]
[1754830123374,0.83347119,801.16,800.15,1.1018512]
[1754830123573,0.83347119,801.16,800.08,0.5]
[1754830123574,0.83347119,801.14,800.18,1.1018512]
[1754830123978,0.83347119,801.13,800.18,1.1018512]
[1754830124378,0.83347119,801.13,800.19,1.1018512]
[1754830124778,0.83347119,801.12,800.2,1.1018512]
[1754830125478,0.83347119,801.17,800.15,1.1018512]
[1754830126279,0.83347119,801.17,800.16,1.1018512]
[1754830127279,0.83347119,801.16,800.16,1.1018512]
[1754830128484,0.83347119,801.15,800.17,1.1018512]
[1754830129784,0.83347119,801.15,800.18,1.1018512]
[1754830131282,0.83347119,801.14,800.19,1.1018512]
[1754830133787,0.83347119,801.13,800.19,1.1018512]
[1754830135388,0.61651832,801.07,800.29,1.1018512]
[1754830135684,1.1101201,801.25,800.31,1.1018512]
[1754830136387,1.1101201,801.25,800.32,1.1018512]
[1754830137189,1.1101201,801.26,800.31,1.1018512]
[1754830138092,1.1101201,801.24,800.32,1.1018512]
[1754830139990,1.1101201,801.26,800.31,1.1018512]
[1754830141488,1.1101201,801.25,800.31,1.1018512]
[1754830142488,1.1101201,801.24,800.31,1.1018512]
[1754830142689,2.7753004,802.03,800.31,1.1018512]
[1754830142690,1.1101201,801.25,800.31,1.1018512]
[1754830143393,1.1101201,801.35,800.42,1.1018512]
[1754830143693,1.1101201,801.36,800.42,1.1018512]
[1754830143993,1.1101201,801.35,800.43,1.1018512]
[1754830144191,1.1101201,801.36,800.42,1.1018512]
[1754830144495,1.1101201,801.35,800.43,1.1018512]
[1754830145195,1.1101201,801.32,800.45,1.1018512]
[1754830145791,1.1101201,801.34,800.43,1.1018512]
[1754830146095,1.1101201,801.33,800.44,1.1018512]
[1754830146394,1.1101201,801.32,800.45,1.1018512]
[1754830146892,1.1101201,801.3,800.46,1.1018512]
[1754830147092,1.1101201,801.3,800.47,1.1018512]
[1754830147296,1.1101201,801.3,800.46,1.1018512]
[1754830147494,1.1101201,801.29,800.46,1.1018512]
[1754830147896,1.1101201,801.3,800.46,1.1018512]
[1754830148592,1.1101201,801.31,800.45,1.1018512]
[1754830149392,1.1101201,801.32,800.44,1.1018512]
[1754830149593,1.1101201,801.31,800.45,1.1018512]
[1754830149793,1.1101201,801.29,800.45,1.1018512]
[1754830150494,1.1101201,801.31,800.44,1.1018512]
[1754830150797,1.1101201,801.26,800.4,1.1018512]
[1754830150997,1.1101201,801.24,800.32,1.1018512]
[1754830151498,1.1101201,801.24,800.31,1.1018512]
[1754830151793,1.1101201,801.3,800.27,1.1018512]
[1754830151999,1.1101201,801.35,800.2,1.1018512]
[1754830152294,1.1101201,801.21,800.08,0.5]
[1754830152793,1.1101201,801.2,800.08,0.5]
[1754830153199,1.1101201,801.22,800.08,0.5]
[1754830153395,1.1101201,801.07,800.08,0.5]
[1754830153695,1.1101201,801.09,800.08,0.5]
[1754830154196,1.1101201,801.1,800.08,0.5]
[1754830154395,1.1101201,801.09,800.08,0.5]
[1754830155099,1.1101201,801.1,800.08,0.5]
[1754830155699,1.1101201,801.08,800.08,0.5]
[1754830156699,2.7753004,802.06,800.08,0.5]
[1754830156700,1.1101201,801.11,800.08,0.5]
[1754830157197,1.1101201,801.12,800.08,0.5]
[1754830157903,1.1101201,801.1,800.08,0.5]
[1754830158097,1.6651802,801.3,800.08,0.5]
[1754830158098,1.1101201,801.11,800.08,0.5]
[1754830160106,1.1101201,801.12,800.08,0.5]
[1754830161006,1.1101201,801.11,800.08,0.5]
[1754830161204,1.1101201,801.12,800.08,0.5]
[1754830161401,1.1101201,801.1,800.08,0.5]
[1754830161705,1.1101201,801.11,800.08,0.5]
[1754830163109,1.1101201,801.12,800.08,0.5]
[1754830163302,1.1101201,801.16,800.08,0.5]
[1754830165107,1.1101201,801.17,800.08,0.5]
[1754830165408,1.1101201,801.16,800.08,0.5]
[1754830165902,1.1101201,801.17,800.08,0.5]
[1754830166507,1.1101201,801.12,800.08,0.5]
[1754830166706,1.1101201,801.11,800.08,0.5]
[1754830168710,1.1101201,801.12,800.08,0.5]
[1754830170111,1.1101201,801.13,800.08,0.5]
[1754830170312,1.1101201,801.11,800.08,0.5]
[1754830171712,1.1101201,801.1,800.08,0.5]
[1754830172014,1.1101201,801.11,800.08,0.5]
[1754830172309,1.1101201,801.16,800.08,0.5]
[1754830173007,1.1101201,801.18,800.08,0.5]
[1754830173412,1.1101201,801.2,800.08,0.5]
[1754830174313,1.1101201,801.19,800.08,0.5]
[1754830175513,1.1101201,801.18,800.08,0.5]
[1754830176014,1.1101201,801.15,800.08,0.5]
[1754830176411,1.1101201,801.14,800.08,0.5]
[1754830178515,1.1101201,801.15,800.08,0.5]
[1754830178915,1.1101201,801.13,800.08,0.5]
[1754830179116,1.1101201,801.12,800.08,0.5]
[1754830181711,1.1101201,801.13,800.08,0.5]
[1754830183216,1.1101201,801.11,800.08,0.5]
[1754830183418,1.1101201,801.24,800.12,1.1018512]
[1754830183713,1.1101201,801.26,800.11,1.1018512]
[1754830184615,1.1101201,801.28,800.09,1.1018512]
[1754830184821,1.1101201,801.33,800.14,1.1018512]
[1754830185218,1.1101201,801.33,800.15,1.1018512]
[1754830186417,1.1101201,801.36,800.18,1.1018512]
[1754830186622,1.1101201,801.38,800.2,1.1018512]
[1754830186822,1.1101201,801.38,800.19,1.1018512]
[1754830187023,1.1101201,801.41,800.22,1.1018512]
[1754830187926,1.1101201,801.4,800.21,1.1018512]
[1754830188126,1.1101201,801.4,800.22,1.1018512]
[1754830188326,1.1101201,801.39,800.22,1.1018512]
[1754830190125,1.1101201,801.39,800.23,1.1018512]
[1754830190325,1.1101201,801.39,800.22,1.1018512]
[1754830191325,1.1101201,801.58,800.28,0.5]
[1754830191527,1.1101201,801.73,800.28,0.5]
[1754830193124,0.21691704,802.76,800.28,0.5]
[1754830193125,1.1101201,801.74,800.28,0.5]
[1754830193525,1.1101201,801.59,800.28,0.5]
[1754830194132,1.1101201,801.6,800.28,0.5]
[1754830195324,0.83663937,801.37,800.28,0.5]
[1754830196130,0.83663937,801.38,800.28,0.5]
[1754830196930,0.83663937,801.37,800.28,0.5]
[1754830197132,0.83663937,801.38,800.28,0.5]
[1754830197826,0.83663937,801.37,800.28,0.5]
[1754830199326,0.83663937,801.35,800.28,0.5]
[1754830200830,0.83663937,801.34,800.28,0.5]
[1754830201030,0.83663937,801.33,800.28,0.5]
[1754830201330,0.83663937,801.26,800.28,0.5]
[1754830201528,0.83663937,801.27,800.28,0.5]
[1754830201933,0.83663937,801.28,800.28,0.5]
[1754830203333,0.83663937,801.32,800.28,0.5]
[1754830205736,0.83663937,801.31,800.28,0.5]
[1754830206130,0.83663937,801.3,800.28,0.5]
[1754830206333,0.83663937,801.31,800.28,0.5]
[1754830207635,0.83663937,801.24,800.28,0.5]
[1754830207834,0.83603686,801.23,800.28,0.5]
[1754830208435,0.63603686,801.23,800.28,0.5]
[1754830208635,1.1101201,801.35,800.28,0.5]
[1754830209441,1.1101201,801.4,800.28,0.5]
[1754830209739,1.1101201,801.35,800.28,0.5]
[1754830210540,1.1101201,801.34,800.28,0.5]
[1754830211146,1.1101201,801.35,800.28,0.5]
[1754830211636,1.1101201,801.34,800.28,0.5]
[1754830212036,1.1101201,801.29,800.28,0.5]
[1754830212235,1.1101201,801.23,800.28,0.5]
[1754830212439,1.1101201,801.24,800.28,0.5]
[1754830212641,1.1101201,801.25,800.28,0.5]
[1754830212837,1.1101201,801.23,800.28,0.5]
[1754830213038,1.1101201,801.13,800.09,0.5]
[1754830213336,1.1101201,801.13,799.99,1.1018512]
[1754830213639,1.1101201,801.12,799.99,1.1018512]
[1754830214142,1.1101201,801.12,800.0,1.1018512]
[1754830215242,1.1101201,801.11,800.0,1.1018512]
[1754830215536,1.1101201,801.13,800.0,1.1018512]
[1754830215742,1.1101201,801.13,799.99,1.1018512]
[1754830215942,1.1101201,801.15,799.97,1.1018512]
[1754830216142,1.1101201,801.12,799.94,1.1018512]
[1754830216442,1.1101201,801.12,799.95,1.1018512]
[1754830218240,1.1101201,801.11,799.95,1.1018512]
[1754830219043,1.1101201,801.1,799.95,1.1018512]
[1754830219240,1.1101201,801.06,799.93,0.5]
[1754830223143,1.1101201,801.09,799.93,0.5]
[1754830223343,1.1101201,801.11,799.93,0.5]
[1754830226342,1.1101201,801.1,799.93,1.6018512]
[1754830229148,1.1101201,801.09,799.93,1.6018512]
[1754830229550,1.1101201,801.09,799.94,1.1018512]
[1754830230549,1.1101201,801.09,799.93,1.6018512]
[1754830232252,1.1101201,801.12,799.93,0.5]
[1754830232553,1.1101201,801.34,799.93,0.5]
[1754830233049,1.1101201,801.4,799.93,0.5]
[1754830233456,1.1101201,801.52,800.02,1.1018512]
[1754830233656,1.1101201,801.52,799.93,0.5]
[1754830233657,1.1101201,801.54,800.09,0.5]
[1754830234352,1.1101201,801.55,800.09,0.5]
[1754830234953,1.1101201,801.54,800.09,0.5]
[1754830235156,1.1101201,801.55,800.09,0.5]
[1754830235353,1.1101201,801.54,800.09,0.5]
[1754830236058,1.1101201,801.55,800.09,0.5]
[1754830236556,1.1101201,801.54,800.09,0.5]
[1754830237059,1.1101201,801.87,800.16,1.1018512]
[1754830237255,1.1101201,801.71,800.11,1.1018512]
[1754830237559,1.1101201,801.7,800.12,1.1018512]
[1754830239355,1.1101201,801.62,800.18,1.1018512]
[1754830241355,1.1101201,801.61,800.18,1.1018512]
[1754830241958,1.1101201,801.62,800.18,1.1018512]
[1754830243463,1.1101201,801.43,800.09,0.5]
[1754830246962,1.1101201,801.3,800.1,1.1018512]
[1754830247167,1.1101201,801.34,800.09,0.5]
[1754830247367,1.1101201,801.35,800.09,0.5]
[1754830247568,1.1101201,801.36,800.09,0.5]
[1754830249070,1.1101201,801.34,800.09,1.6018512]
[1754830249272,1.1101201,801.35,800.09,1.6018512]
[1754830249469,1.1101201,801.34,800.09,1.6018512]
[1754830249873,1.1101201,801.34,800.1,1.1018512]
[1754830250173,1.1101201,801.34,800.09,1.6018512]
[1754830250373,1.1101201,801.34,800.1,1.1018512]
[1754830250770,1.1101201,801.34,800.09,1.6018512]
[1754830251073,1.1101201,801.35,800.09,1.6018512]
[1754830251374,1.1101201,801.34,800.09,1.6018512]
[1754830251973,2.7753004,802.15,800.09,1.6018512]
[1754830251974,1.1101201,801.37,800.09,0.5]
[1754830253272,1.1101201,801.38,800.09,0.5]
[1754830253576,1.6651802,801.55,800.09,0.5]
[1754830253577,1.1101201,801.43,800.12,1.1018512]
[1754830253876,1.1101201,801.44,800.13,1.1018512]
[1754830254174,1.1101201,801.43,800.12,1.1018512]
[1754830254876,1.1101201,801.45,800.11,1.1018512]
[1754830255676,1.1101201,801.46,800.1,1.1018512]
[1754830256277,1.1101201,801.45,800.11,1.1018512]
[1754830256978,1.1101201,801.42,800.13,1.1018512]
[1754830259877,1.1101201,801.41,800.12,1.1018512]
[1754830260079,1.1101201,801.42,800.12,1.1018512]
[1754830260782,1.1101201,801.41,800.12,1.1018512]
[1754830260983,1.1101201,801.37,800.1,1.1018512]
[1754830261279,1.1101201,801.33,800.11,1.1018512]
[1754830262178,1.1101201,801.29,800.11,1.1018512]
[1754830262379,1.1101201,801.32,800.09,1.1018512]
[1754830263489,1.1101201,801.24,800.07,1.1018512]
[1754830263686,1.1101201,801.25,800.06,1.1018512]
[1754830263885,1.1101201,801.25,800.05,1.1018512]
[1754830264386,1.1101201,801.25,800.06,1.1018512]
[1754830265290,1.1101201,801.24,800.06,1.1018512]
[1754830265786,1.1101201,801.24,799.88,0.21693461]
[1754830265787,1.1101201,801.3,800.02,1.1018512]
[1754830266291,1.1101201,801.29,800.1,0.5]
[1754830268595,0.83723731,801.07,800.1,0.5]
[1754830269291,0.83723731,801.06,800.1,0.5]
[1754830269995,0.83723731,800.99,800.1,0.5]
[1754830273397,0.83723731,801.14,800.11,1.1018512]
[1754830273997,0.83723731,801.09,800.18,1.1018512]
[1754830274197,0.83723731,801.08,800.18,1.1018512]
[1754830275293,0.83723731,801.09,800.18,1.1018512]
[1754830275495,0.83723731,801.08,800.18,1.1018512]
[1754830276501,0.83723731,801.08,800.19,1.1018512]
[1754830276797,0.83723731,801.09,800.18,1.1018512]
[1754830277903,0.83723731,801.08,800.18,1.1018512]
[1754830278104,0.83723731,801.08,800.19,1.1018512]
[1754830279699,0.83723731,801.07,800.2,1.1018512]
[1754830280605,0.83723731,801.1,800.16,1.1018512]
[1754830281101,0.83723731,801.11,800.16,1.1018512]
[1754830281302,0.83723731,801.1,800.16,1.1018512]
[1754830282506,0.83723731,801.1,800.17,1.1018512]
[1754830282904,0.83723731,801.1,800.06,0.5]
[1754830282905,0.83723731,801.1,800.16,1.1018512]
[1754830283203,0.83723731,801.1,800.17,1.1018512]
[1754830283404,0.83723731,800.96,800.06,0.5]
[1754830284508,0.83723731,800.98,800.06,1.6018512]
[1754830285410,0.63723731,800.98,800.06,0.5]
[1754830285612,1.1101201,801.15,800.06,1.6018512]
[1754830286511,1.1101201,801.14,800.07,1.1018512]
[1754830287010,1.1101201,801.16,800.09,1.1018512]
[1754830287407,1.1101201,801.15,800.1,1.1018512]
[1754830287712,1.1101201,801.21,800.15,1.1018512]
[1754830288011,1.1101201,801.22,800.16,1.1018512]
[1754830288410,1.1101201,801.22,800.17,1.1018512]
[1754830288908,1.1101201,801.28,800.24,1.1018512]
[1754830289810,1.1101201,801.27,800.24,1.1018512]
[1754830290111,1.1101201,801.28,800.23,1.1018512]
[1754830290313,1.1101201,801.27,800.24,1.1018512]
[1754830292314,1.1101201,801.27,800.25,1.1018512]
[1754830293412,1.1101201,801.26,800.24,1.1018512]
[1754830294016,1.1101201,801.26,800.23,1.1018512]
[1754830295315,1.1101201,801.27,800.24,1.1018512]
[1754830296318,1.1101201,801.27,800.23,1.1018512]
[1754830296615,1.1101201,801.23,800.26,1.1018512]
[1754830297315,1.1101201,801.23,800.27,1.1018512]
[1754830297515,1.1101201,801.23,800.26,1.1018512]
[1754830299323,1.1101201,801.24,800.26,1.1018512]
[1754830299823,1.1101201,801.22,800.27,1.1018512]
[1754830300118,1.1101201,801.22,800.28,1.1018512]
[1754830301120,1.1101201,801.21,800.28,1.1018512]
[1754830302026,1.1101201,801.21,800.27,1.1018512]
[1754830302224,1.1101201,801.21,800.28,1.1018512]
[1754830302422,1.1101201,801.21,800.27,1.1018512]
[1754830302725,1.1101201,801.25,800.24,1.1018512]
[1754830303426,1.1101201,801.26,800.25,1.1018512]
[1754830303927,1.1101201,801.24,800.23,1.1018512]
[1754830304226,1.1101201,801.23,800.21,1.1018512]
[1754830306326,1.1101201,801.23,800.22,1.1018512]
[1754830307025,1.1101201,801.22,800.22,1.1018512]
[1754830307227,1.1101201,801.23,800.21,1.1018512]
[1754830307524,1.1101201,801.23,800.22,1.1018512]
[1754830307722,1.1101201,801.22,800.22,1.1018512]
[1754830309630,1.1101201,801.3,800.07,1.1018512]
[1754830309828,1.1101201,801.24,800.06,0.5]
[1754830310129,1.1101201,801.25,800.06,0.5]
[1754830313328,1.1101201,801.24,800.06,0.5]
[1754830316843,1.1101201,801.1,800.11,1.1018512]
[1754830317643,1.1101201,801.11,800.11,1.1018512]
[1754830318347,1.1101201,801.1,800.11,1.1018512]
[1754830319541,1.1101201,801.05,800.15,1.1018512]
[1754830319741,1.1101201,801.05,800.16,1.1018512]
[1754830322643,1.1101201,801.07,800.14,1.1018512]
[1754830323348,1.1101201,801.18,800.25,1.1018512]
[1754830325047,1.1101201,801.19,800.25,1.1018512]
[1754830325245,1.1101201,801.18,800.26,1.1018512]
[1754830326449,1.1101201,801.19,800.25,1.1018512]
[1754830326750,1.1101201,801.18,800.25,1.1018512]
[1754830328246,1.1101201,801.2,800.24,1.1018512]
[1754830328447,1.1101201,801.19,800.22,1.1018512]
[1754830330654,1.1101201,801.18,800.21,1.1018512]
[1754830331253,1.1101201,801.19,800.22,1.1018512]
[1754830331452,1.1101201,801.18,800.22,1.1018512]
[1754830332752,1.1101201,801.17,800.23,1.1018512]
[1754830332952,1.1101201,801.18,800.22,1.1018512]
[1754830333456,1.1101201,801.05,800.08,1.1018512]
[1754830333657,1.1101201,801.01,800.06,0.5]
[1754830334757,0.9101201,801.01,800.06,0.5]
[1754830335259,1.6651802,801.17,800.06,0.5]
[1754830336659,1.6651802,801.16,800.06,0.5]
[1754830338655,1.6651802,801.16,800.06,0.71699887]
[1754830339657,1.6651802,801.18,800.06,0.71699887]
[1754830339857,1.6651802,801.16,800.06,0.71699887]
[1754830340757,1.6651802,801.17,800.06,0.71699887]
[1754830340962,1.6651802,801.14,800.06,0.71699887]
[1754830341758,1.6651802,801.15,800.06,0.71699887]
[1754830342060,1.6651802,801.12,800.06,0.71699887]
[1754830343357,1.6651802,801.14,800.06,0.71699887]
[1754830343663,3.8854205,801.95,800.06,0.71699887]
[1754830343664,1.6651802,801.15,800.06,0.71699887]
[1754830343962,1.6651802,801.18,800.06,0.71699887]
[1754830344561,1.6651802,801.19,800.06,0.71699887]
[1754830345459,0.83810371,800.83,800.06,0.71699887]
[1754830346659,0.83810371,800.84,800.06,0.71699887]
[1754830347360,0.83810371,800.85,800.06,0.71699887]
[1754830347763,0.83810371,800.84,800.06,0.71699887]
[1754830347963,0.83810371,800.9,800.06,0.71699887]
[1754830349667,0.83810371,800.89,800.06,0.71699887]
[1754830349965,0.83810371,800.95,800.06,0.71699887]
[1754830350165,0.62109063,800.99,800.06,0.5]
[1754830350365,1.6651802,801.43,800.06,0.5]
[1754830350867,1.6651802,801.44,800.06,0.5]
[1754830351661,3.8854205,802.59,800.06,0.5]
[1754830351662,1.6651802,801.42,800.06,0.5]
[1754830352064,1.6651802,801.3,800.06,0.5]
[1754830352263,1.6651802,801.28,800.06,0.5]
[1754830352965,1.6651802,801.48,800.06,0.5]
[1754830353161,1.6651802,801.48,800.18,0.21697316]
[1754830353362,1.6651802,801.47,800.18,0.21697316]
[1754830354566,1.6651802,801.49,800.18,0.21697316]
[1754830354862,1.6651802,801.48,800.18,0.21697316]
[1754830355363,1.6651802,801.47,800.18,0.21697316]
[1754830357468,1.6651802,801.46,800.18,0.21697316]
[1754830357764,1.6651802,801.47,800.18,0.21697316]
[1754830358170,1.6651802,801.46,800.18,0.21697316]
[1754830359470,1.6651802,801.45,800.18,0.21697316]
[1754830360172,1.6651802,801.46,800.18,0.21697316]
[1754830362269,1.6651802,801.45,800.18,0.21697316]
[1754830362773,1.6651802,801.33,800.18,0.21697316]
[1754830363375,1.6651802,801.39,800.18,0.21697316]
[1754830363676,1.6651802,801.4,800.18,0.21697316]
[1754830364276,1.6651802,801.51,800.18,0.21697316]
[1754830364577,1.6651802,801.5,800.18,0.21697316]
[1754830364770,1.1180367,801.3,800.18,0.21697316]
[1754830365277,1.1180367,801.29,800.18,0.21697316]
[1754830367379,1.1180367,801.28,800.18,0.21697316]
[1754830368780,1.1180367,801.25,800.18,0.21697316]
[1754830370077,1.1180367,801.24,800.18,0.21697316]
[1754830370875,1.1180367,801.23,800.18,0.21697316]
[1754830373381,3.8854205,802.54,800.18,0.21697316]
[1754830373382,1.1180367,801.14,800.18,0.21697316]
[1754830374082,2.7753004,802.06,800.18,0.21697316]
[1754830374083,1.1180367,801.02,800.18,0.21697316]
[1754830374581,1.1180367,801.01,800.18,0.21697316]
[1754830375385,2.7753004,801.69,800.18,0.21697316]
[1754830375386,1.1180367,801.35,800.18,0.21697316]
[1754830379487,1.1180367,801.33,800.18,0.21697316]
[1754830379784,1.1180367,801.32,800.18,0.21697316]
[1754830380286,1.1180367,801.29,800.18,0.21697316]